fUST/lending_fUST_20240619
["ID","MTS","AMOUNT","RATE_DAILY","PERIOD"]
[329873499,1718779845329,-500.0,0.00016438,2]
[329873500,1718779845338,-500.0,0.00016438,2]
[329873501,1718779845348,-500.0,0.00016438,2]
[329873502,1718779845357,-500.0,0.00016438,2]
[329873503,1718779845366,-500.0,0.00016438,2]
[329873504,1718779845375,-500.0,0.00016438,2]
[329873505,1718779845384,-500.0,0.00016438,2]
[329873506,1718779845394,-500.0,0.00016438,2]
[329873507,1718779845403,-500.0,0.00016438,2]
[329873508,1718779845413,-500.0,0.00016438,2]
[329873509,1718779845423,-500.0,0.00016438,2]
[329873510,1718779845432,-500.0,0.00016438,2]
[329873511,1718779845441,-500.0,0.00016438,2]
[329873512,1718779845449,-500.0,0.00016438,2]
[329873513,1718779845458,-500.0,0.00016438,2]
[329873514,1718779845467,-500.0,0.00016438,2]
[329873515,1718779845477,-2775.0,0.00016438,2]
[329873516,1718779845486,-500.0,0.00016438,2]
[329873517,1718779845494,-500.0,0.00016438,2]
[329873518,1718779845503,-500.0,0.00016438,2]
[329873519,1718779845512,-500.0,0.00016438,2]
[329873520,1718779845521,-3127.35,0.00016438,2]
[329873522,1718779845530,-500.0,0.00016438,2]
[329873524,1718779845539,-500.0,0.00016438,2]
[329873526,1718779845549,-500.0,0.00016438,2]
[329873528,1718779845558,-500.0,0.00016438,2]
[329873530,1718779845567,-500.0,0.00016438,2]
[329873532,1718779845576,-723.56,0.00016438,2]
[329873534,1718779845585,-510.99609868,0.00016438,2]
[329873536,1718779845595,-500.0,0.00016438,2]
[329873537,1718779845604,-500.0,0.00016438,2]
[329873539,1718779845613,-502.45855683,0.00016438,2]
[329873541,1718779845623,-500.0,0.00016438,2]
[329873543,1718779845632,-1202.67,0.00016438,2]
[329873545,1718779845641,-500.0,0.00016438,2]
[329873547,1718779845650,-500.0,0.00016438,2]
[329873549,1718779845659,-500.0,0.00016438,2]
[329873551,1718779845669,-500.0,0.00016438,2]
[329873553,1718779845678,-500.0,0.00016438,2]
[329873555,1718779845687,-757.99,0.00016438,2]
[329873572,1718779845835,-500.0,0.00016438,2]
[329873574,1718779845845,-500.0,0.00016438,2]
[329873576,1718779845855,-500.0,0.00016438,2]
[329873578,1718779845864,-500.0,0.00016438,2]
[329873580,1718779845874,-502.64379094,0.00016438,2]
[329873582,1718779845883,-500.0,0.00016438,2]
[329873584,1718779845892,-503.03369081,0.00016438,2]
[329873586,1718779845901,-500.0,0.00016438,2]
[329873588,1718779845910,-500.0,0.00016438,2]
[329873589,1718779845920,-500.0,0.00016438,2]
[329873592,1718779845929,-5683.91,0.00016438,2]
[329873593,1718779845938,-500.0,0.00016438,2]
[329873595,1718779845947,-151.0,0.00016438,2]
[329873597,1718779845957,-500.0,0.00016438,2]
[329873599,1718779845966,-151.0,0.00016438,2]
[329873601,1718779845975,-286.55073256,0.00016438,2]
[329873603,1718779845984,-500.0,0.00016438,2]
[329873605,1718779845994,-500.0,0.00016438,2]
[329873607,1718779846003,-500.0,0.00016438,2]
[329873609,1718779846012,-500.0,0.00016438,2]
[329873612,1718779846023,-1323.934145,0.00016438,2]
[329873614,1718779846033,-1323.934145,0.00016438,2]
[329873615,1718779846042,-507.99193293,0.00016438,2]
[329873617,1718779846051,-1323.934145,0.00016438,2]
[329873620,1718779846061,-1323.934145,0.00016438,2]
[329873621,1718779846070,-1323.934145,0.00016438,2]
[329873623,1718779846080,-500.0,0.00016438,2]
[329873625,1718779846089,-500.0,0.00016438,2]
[329873627,1718779846098,-787.36,0.00016438,2]
[329873629,1718779846107,-500.0,0.00016438,2]
[329873631,1718779846117,-500.0,0.00016438,2]
[329873633,1718779846126,-515.87928106,0.00016438,2]
[329873635,1718779846136,-1323.934145,0.00016438,2]
[329873637,1718779846145,-1323.934145,0.00016438,2]
[329873639,1718779846154,-1323.934145,0.00016438,2]
[329873641,1718779846163,-1323.934145,0.00016438,2]
[329873643,1718779846172,-1323.934145,0.00016438,2]
[329873645,1718779846182,-504.66184977,0.00016438,2]
[329873647,1718779846196,-502.4270916,0.00016438,2]
[329873649,1718779846206,-500.0,0.00016438,2]
[329873651,1718779846215,-500.0,0.00016438,2]
[329873653,1718779846224,-500.0,0.00016438,2]
[329873655,1718779846234,-500.0,0.00016438,2]
[329873657,1718779846244,-500.0,0.00016438,2]
[329873659,1718779846253,-510.05401659,0.00016438,2]
[329873661,1718779846263,-500.0,0.00016438,2]
[329873663,1718779846273,-500.0,0.00016438,2]
[329873665,1718779846283,-500.0,0.00016438,2]
[329873668,1718779846293,-500.0,0.00016438,2]
[329873669,1718779846303,-500.0,0.00016438,2]
[329873671,1718779846312,-500.0,0.00016438,2]
[329873674,1718779846322,-500.0,0.00016438,2]
[329873675,1718779846331,-502.93608604,0.00016438,2]
[329873678,1718779846341,-504.60595636,0.00016438,2]
[329873679,1718779846350,-500.0,0.00016438,2]
[329873681,1718779846360,-500.0,0.00016438,2]
[329873683,1718779846370,-500.0,0.00016438,2]
[329873685,1718779846380,-500.0,0.00016438,2]
[329873687,1718779846389,-500.0,0.00016438,2]
[329873689,1718779846399,-500.0,0.00016438,2]
[329873692,1718779846409,-500.0,0.00016438,2]
[329873693,1718779846418,-500.0,0.00016438,2]
[329873695,1718779846428,-500.0,0.00016438,2]
[329873697,1718779846437,-500.0,0.00016438,2]
[329873699,1718779846446,-500.0,0.00016438,2]
[329873701,1718779846455,-500.0,0.00016438,2]
[329873703,1718779846465,-500.0,0.00016438,2]
[329873705,1718779846474,-500.0,0.00016438,2]
[329873707,1718779846482,-500.0,0.00016438,2]
[329873709,1718779846491,-151.0,0.00016438,2]
[329873711,1718779846501,-500.0,0.00016438,2]
[329873713,1718779846510,-500.0,0.00016438,2]
[329873715,1718779846519,-500.0,0.00016438,2]
[329873717,1718779846528,-500.0,0.00016438,2]
[329873719,1718779846537,-500.0,0.00016438,2]
[329873721,1718779846547,-500.0,0.00016438,2]
[329873723,1718779846556,-294.98455101,0.00016438,2]
[329873726,1718779846565,-500.0,0.00016438,2]
[329873727,1718779846575,-500.0,0.00016438,2]
[329873729,1718779846584,-500.0,0.00016438,2]
[329873732,1718779846597,-444.44358262,0.00016438,2]
[329873734,1718779846606,-500.0,0.00016438,2]
[329873736,1718779846616,-372.50592829,0.00016438,2]
[329873738,1718779846627,-500.0,0.00016438,2]
[329873740,1718779846636,-822.64,0.00016438,2]
[329873742,1718779846646,-500.0,0.00016438,2]
[329873744,1718779846659,-500.0,0.00016438,2]
[329873746,1718779846668,-503.20683974,0.00016438,2]
[329873748,1718779846677,-500.0,0.00016438,2]
[329873750,1718779846686,-500.0,0.00016438,2]
[329873752,1718779846695,-505.16891867,0.00016438,2]
[329873754,1718779846704,-500.0,0.00016438,2]
[329873756,1718779846714,-506.72102544,0.00016438,2]
[329873758,1718779846723,-500.0,0.00016438,2]
[329873760,1718779846733,-643.13870491,0.00016438,2]
[329873762,1718779846742,-500.0,0.00016438,2]
[329873764,1718779846751,-500.0,0.00016438,2]
[329873766,1718779846761,-500.0,0.00016438,2]
[329873768,1718779846770,-500.0,0.00016438,2]
[329873770,1718779846779,-500.0,0.00016438,2]
[329873772,1718779846788,-500.0,0.00016438,2]
[329873774,1718779846798,-500.0,0.00016438,2]
[329873776,1718779846807,-22195.4757147,0.00016438,2]
[329873778,1718779846817,-275.92715152,0.000165,2]
[329873780,1718779846827,-166.86832969,0.0001652,2]
[329873782,1718779846836,-166.86832969,0.00016612,2]
[329873784,1718779846846,-500.0,0.00016711,2]
[329873786,1718779846856,-290.09179027,0.00016711,2]
[329873789,1718779846865,-500.0,0.00016711,2]
[329873792,1718779846876,-500.0,0.00016711,2]
[329873795,1718779846885,-500.0,0.00016711,2]
[329873798,1718779846894,-500.0,0.00016711,2]
[329873801,1718779846903,-500.0,0.00016711,2]
[329873804,1718779846913,-536.47091871,0.00016712,2]
[329873807,1718779846922,-500.0,0.00016712,2]
[329873809,1718779846931,-500.0,0.00016712,2]
[329873812,1718779846941,-500.0,0.00016712,2]
[329873816,1718779846950,-500.0,0.00016712,2]
[329873818,1718779846960,-509.6238209,0.00016712,2]
[329873821,1718779846969,-500.0,0.00016712,2]
[329873823,1718779846978,-500.0,0.00016712,2]
[329873827,1718779846988,-500.0,0.00016712,2]
[329873829,1718779846998,-500.0,0.00016712,2]
[329873833,1718779847007,-500.0,0.00016712,2]
[329873835,1718779847017,-500.0,0.00016712,2]
[329873840,1718779847026,-500.0,0.00016712,2]
[329873843,1718779847036,-500.0,0.00016712,2]
[329873846,1718779847047,-500.0,0.00016712,2]
[329873847,1718779847057,-500.0,0.00016712,2]
[329873850,1718779847066,-236.15625101,0.00016712,2]
[329873853,1718779847075,-192.44892117,0.00016712,2]
[329873856,1718779847085,-206.29741591,0.00016712,2]
[329873858,1718779847095,-505.54786075,0.00016712,2]
[329873860,1718779847105,-500.0,0.00016712,2]
[329873862,1718779847114,-500.0,0.00016712,2]
[329873864,1718779847124,-500.0,0.00016712,2]
[329873866,1718779847135,-500.0,0.00016712,2]
[329873868,1718779847145,-336.23092983,0.00016712,2]
[329873870,1718779847155,-500.0,0.00016712,2]
[329873872,1718779847164,-500.0,0.00016712,2]
[329873874,1718779847174,-500.0,0.00016712,2]
[329873877,1718779847186,-500.0,0.00016712,2]
[329873879,1718779847197,-502.90568506,0.00016712,2]
[329873880,1718779847207,-500.0,0.00016712,2]
[329873882,1718779847216,-500.0,0.00016712,2]
[329873885,1718779847226,-500.0,0.00016712,2]
[329873887,1718779847237,-500.0,0.00016712,2]
[329873889,1718779847246,-500.0,0.00016712,2]
[329873891,1718779847256,-500.0,0.00016712,2]
[329873893,1718779847269,-500.0,0.00016712,2]
[329873895,1718779847280,-505.55229036,0.00016712,2]
[329873897,1718779847290,-500.0,0.00016712,2]
[329873899,1718779847300,-500.0,0.00016712,2]
[329873901,1718779847309,-500.0,0.00016712,2]
[329873903,1718779847318,-500.0,0.00016712,2]
[329873905,1718779847328,-500.0,0.00016712,2]
[329873907,1718779847338,-500.0,0.00016712,2]
[329873909,1718779847347,-500.0,0.00016712,2]
[329873911,1718779847358,-500.0,0.00016712,2]
[329873913,1718779847368,-500.0,0.00016712,2]
[329873915,1718779847379,-500.0,0.00016712,2]
[329873917,1718779847388,-500.0,0.00016712,2]
[329873919,1718779847397,-500.0,0.00016712,2]
[329873921,1718779847407,-2330.95,0.00016712,2]
[329873923,1718779847417,-500.0,0.00016712,2]
[329873925,1718779847428,-500.0,0.00016712,2]
[329873927,1718779847438,-500.0,0.00016712,2]
[329873929,1718779847449,-535.4504659,0.00016712,2]
[329873931,1718779847460,-500.0,0.00016712,2]
[329873933,1718779847471,-500.0,0.00016712,2]
[329873935,1718779847481,-500.0,0.00016712,2]
[329873937,1718779847492,-500.0,0.00016712,2]
[329873939,1718779847502,-500.0,0.00016712,2]
[329873941,1718779847512,-506.85252024,0.00016712,2]
[329873943,1718779847522,-500.0,0.00016712,2]
[329873945,1718779847533,-500.0,0.00016712,2]
[329873947,1718779847543,-500.0,0.00016712,2]
[329873949,1718779847553,-2775.0,0.00016712,2]
[329873951,1718779847563,-500.0,0.00016712,2]
[329873953,1718779847572,-500.0,0.00016712,2]
[329873955,1718779847582,-500.0,0.00016712,2]
[329873957,1718779847592,-3127.35,0.00016712,2]
[329873959,1718779847602,-500.0,0.00016712,2]
[329873961,1718779847611,-500.0,0.00016712,2]
[329873963,1718779847621,-500.0,0.00016712,2]
[329873965,1718779847632,-500.0,0.00016712,2]
[329873967,1718779847642,-723.56,0.00016712,2]
[329873969,1718779847652,-500.0,0.00016712,2]
[329873971,1718779847662,-500.0,0.00016712,2]
[329873973,1718779847671,-500.0,0.00016712,2]
[329873975,1718779847681,-1202.67,0.00016712,2]
[329873977,1718779847691,-500.0,0.00016712,2]
[329873979,1718779847700,-500.0,0.00016712,2]
[329873981,1718779847710,-500.0,0.00016712,2]
[329873983,1718779847719,-500.0,0.00016712,2]
[329873985,1718779847728,-757.99,0.00016712,2]
[329873987,1718779847738,-507.80413817,0.00016712,2]
[329873989,1718779847748,-500.0,0.00016712,2]
[329873991,1718779847757,-277.04585036,0.00016712,2]
[329873993,1718779847767,-500.0,0.00016712,2]
[329873995,1718779847776,-500.0,0.00016712,2]
[329873997,1718779847785,-500.0,0.00016712,2]
[329873999,1718779847795,-5683.91,0.00016712,2]
[329874002,1718779847805,-500.0,0.00016712,2]
[329874003,1718779847814,-223.87440523,0.00016712,2]
[329874006,1718779847824,-500.0,0.00016712,2]
[329874008,1718779847834,-500.0,0.00016712,2]
[329874009,1718779847843,-500.0,0.00016712,2]
[329874011,1718779847853,-500.0,0.00016712,2]
[329874012,1718779847863,-1323.934145,0.00016712,2]
[329874013,1718779847873,-1323.934145,0.00016712,2]
[329874014,1718779847884,-1323.934145,0.00016712,2]
[329874015,1718779847893,-787.36,0.00016712,2]
[329874016,1718779847903,-1323.934145,0.00016712,2]
[329874017,1718779847912,-1323.934145,0.00016712,2]
[329874018,1718779847921,-1323.934145,0.00016712,2]
[329874019,1718779847930,-1323.934145,0.00016712,2]
[329874020,1718779847939,-1323.934145,0.00016712,2]
[329874022,1718779847948,-500.0,0.00016712,2]
[329874024,1718779847957,-500.0,0.00016712,2]
[329874026,1718779847967,-178.84446298,0.00016712,2]
[329874029,1718779847983,-500.0,0.00016712,2]
[329874031,1718779847994,-510.12029792,0.00016712,2]
[329874033,1718779848004,-500.0,0.00016712,2]
[329874035,1718779848013,-500.0,0.00016712,2]
[329874037,1718779848022,-500.0,0.00016712,2]
[329874039,1718779848032,-500.0,0.00016712,2]
[329874042,1718779848043,-500.0,0.00016712,2]
[329874044,1718779848053,-500.0,0.00016712,2]
[329874046,1718779848062,-491.95155407,0.00016712,2]
[329874047,1718779848072,-500.0,0.00016712,2]
[329874050,1718779848082,-438.92622762,0.00016712,2]
[329874052,1718779848092,-500.0,0.00016712,2]
[329874054,1718779848102,-250.41998809,0.00016712,2]
[329874056,1718779848111,-500.0,0.00016712,2]
[329874058,1718779848121,-500.0,0.00016712,2]
[329874060,1718779848133,-500.0,0.00016712,2]
[329874076,1718779848278,-500.0,0.00016712,2]
[329874078,1718779848289,-500.0,0.00016712,2]
[329874080,1718779848298,-500.0,0.00016712,2]
[329874082,1718779848308,-500.0,0.00016712,2]
[329874084,1718779848318,-500.0,0.00016712,2]
[329874086,1718779848327,-822.64,0.00016712,2]
[329874088,1718779848337,-500.0,0.00016712,2]
[329874090,1718779848347,-500.0,0.00016712,2]
[329874092,1718779848356,-500.0,0.00016712,2]
[329874094,1718779848365,-500.0,0.00016712,2]
[329874096,1718779848374,-500.0,0.00016712,2]
[329874098,1718779848386,-399.40120066,0.00016712,2]
[329874155,1718779849206,-139.01483944,0.00016712,2]
[329874156,1718779849215,-192.88016056,0.00016712,2]
[329874157,1718779849226,-359.31802482,0.00016712,2]
[329874158,1718779849237,-189.78995085,0.00016712,2]
[329875365,1718780830213,-1014.7037298,0.00014829,2]
[329875366,1718780830241,-3571.01085179,0.0001514,2]
[329875367,1718780835129,-738.12031985,0.0001514,2]
[329875368,1718780848306,-154.81422293,0.0001514,2]
[329875369,1718780885012,273.37336231,9.9e-05,2]
[329875371,1718780972103,-297.488848,0.00015059,2]
[329875372,1718780972125,-404.51941063,0.0001514,2]
[329875596,1718781033983,-523.94426387,0.00015998,2]
[329875599,1718781033996,-2549.75625887,0.00015998,2]
[329875601,1718781034006,-300.0,0.00015999,2]
[329875603,1718781034015,-300.0,0.00015999,2]
[329875605,1718781034025,-26049.9479,0.00016,2]
[329875607,1718781034035,-158.15060457,0.00016338,2]
[329875609,1718781034044,-592.19407371,0.00016397,2]
[329875611,1718781034053,-394.58958624,0.000164,2]
[329875613,1718781034062,-500.0,0.00016438,2]
[329875615,1718781034071,-506.00471581,0.00016438,2]
[329875616,1718781034081,-500.0,0.00016438,2]
[329875619,1718781034091,-520.02793522,0.00016438,2]
[329875620,1718781034101,-500.0,0.00016438,2]
[329875622,1718781034111,-503.20887304,0.00016438,2]
[329875624,1718781034121,-500.0,0.00016438,2]
[329875626,1718781034131,-440.66013349,0.00016438,2]
[329875628,1718781034140,-500.0,0.00016438,2]
[329875630,1718781034150,-618.57151986,0.00016438,2]
[329875632,1718781034159,-442.95921127,0.00016438,2]
[329875634,1718781034168,-500.0,0.00016438,2]
[329875636,1718781034180,-515.12027091,0.00016438,2]
[329875638,1718781034189,-502.17659728,0.00016438,2]
[329875640,1718781034198,-500.0,0.00016438,2]
[329875642,1718781034208,-500.0,0.00016438,2]
[329875644,1718781034217,-500.0,0.00016438,2]
[329875646,1718781034226,-500.0,0.00016438,2]
[329875648,1718781034235,-500.0,0.00016438,2]
[329875650,1718781034245,-503.88926442,0.00016438,2]
[329875652,1718781034255,-500.0,0.00016438,2]
[329875654,1718781034264,-500.0,0.00016438,2]
[329875656,1718781034274,-506.31137812,0.00016438,2]
[329875658,1718781034283,-500.0,0.00016438,2]
[329875660,1718781034293,-500.0,0.00016438,2]
[329875662,1718781034302,-500.0,0.00016438,2]
[329875664,1718781034311,-500.0,0.00016438,2]
[329875666,1718781034320,-500.0,0.00016438,2]
[329875668,1718781034330,-537.69073489,0.00016438,2]
[329875670,1718781034339,-506.7522991,0.00016438,2]
[329875672,1718781034348,-500.0,0.00016438,2]
[329875674,1718781034358,-500.0,0.00016438,2]
[329875676,1718781034367,-500.0,0.00016438,2]
[329875679,1718781034377,-500.0,0.00016438,2]
[329875681,1718781034397,-531.15228598,0.00016438,2]
[329875683,1718781034407,-500.0,0.00016438,2]
[329875685,1718781034418,-498.6570184,0.00016438,2]
[329875687,1718781034431,-500.0,0.00016438,2]
[329875690,1718781034441,-503.73228866,0.00016438,2]
[329875692,1718781034451,-500.0,0.00016438,2]
[329875694,1718781034461,-485.8195787,0.00016438,2]
[329875696,1718781034472,-514.90461297,0.00016438,2]
[329875698,1718781034482,-500.0,0.00016438,2]
[329875700,1718781034491,-513.77076266,0.00016438,2]
[329875702,1718781034502,-229.30165034,0.00016438,2]
[329875704,1718781034511,-500.0,0.00016438,2]
[329875706,1718781034521,-512.28891115,0.00016438,2]
[329875708,1718781034531,-500.0,0.00016438,2]
[329875710,1718781034541,-502.99113282,0.00016438,2]
[329875712,1718781034551,-507.84175852,0.00016438,2]
[329875714,1718781034563,-500.0,0.00016438,2]
[329875716,1718781034575,-503.22829206,0.00016438,2]
[329875718,1718781034590,-224.20141698,0.00016438,2]
[329875720,1718781034600,-500.0,0.00016438,2]
[329875722,1718781034611,-304.38469578,0.00016438,2]
[329875724,1718781034620,-500.0,0.00016438,2]
[329875726,1718781034630,-504.54448468,0.00016438,2]
[329875728,1718781034639,-511.9503795,0.00016438,2]
[329875730,1718781034650,-500.0,0.00016438,2]
[329875732,1718781034662,-500.0,0.00016438,2]
[329875735,1718781034674,-500.0,0.00016438,2]
[329875737,1718781034684,-585.41072866,0.00016438,2]
[329875739,1718781034693,-508.86385023,0.00016438,2]
[329875741,1718781034703,-623.30782596,0.00016438,2]
[329875743,1718781034712,-507.47133585,0.00016438,2]
[329875745,1718781034722,-579.76675439,0.00016438,2]
[329875747,1718781034731,-500.0,0.00016438,2]
[329875749,1718781034741,-500.0,0.00016438,2]
[329875751,1718781034750,-514.32751459,0.00016438,2]
[329875753,1718781034759,-505.21346352,0.00016438,2]
[329875755,1718781034769,-538.54638816,0.00016438,2]
[329875757,1718781034778,-500.0,0.00016438,2]
[329875759,1718781034788,-500.0,0.00016438,2]
[329875761,1718781034797,-500.0,0.00016438,2]
[329875763,1718781034806,-502.60760443,0.00016438,2]
[329875765,1718781034815,-500.0,0.00016438,2]
[329875767,1718781034824,-503.07732178,0.00016438,2]
[329875769,1718781034834,-509.83724671,0.00016438,2]
[329875771,1718781034843,-505.13035629,0.00016438,2]
[329875773,1718781034853,-500.0,0.00016438,2]
[329875775,1718781034863,-509.9621018,0.00016438,2]
[329875777,1718781034872,-500.0,0.00016438,2]
[329875779,1718781034881,-500.0,0.00016438,2]
[329875781,1718781034892,-513.04363823,0.00016438,2]
[329875783,1718781034902,-340.54789461,0.00016438,2]
[329875785,1718781034912,-500.0,0.00016438,2]
[329875787,1718781034923,-507.33984473,0.00016438,2]
[329875789,1718781034932,-282.11963791,0.00016438,2]
[329875791,1718781034942,-507.21329553,0.00016438,2]
[329875793,1718781034953,-514.03695494,0.00016438,2]
[329875795,1718781034963,-500.0,0.00016438,2]
[329875797,1718781034973,-500.0,0.00016438,2]
[329875799,1718781034983,-511.64771545,0.00016438,2]
[329875801,1718781034993,-502.68740305,0.00016438,2]
[329875803,1718781035003,-500.0,0.00016438,2]
[329875805,1718781035013,-500.0,0.00016438,2]
[329875807,1718781035024,-500.0,0.00016438,2]
[329875809,1718781035034,-500.0,0.00016438,2]
[329875811,1718781035044,-500.0,0.00016438,2]
[329875813,1718781035054,-500.0,0.00016438,2]
[329875815,1718781035064,-508.74731456,0.00016438,2]
[329875817,1718781035074,-151.0,0.00016438,2]
[329875818,1718781035083,-523.74346953,0.00016438,2]
[329875819,1718781035093,-500.0,0.00016438,2]
[329875820,1718781035102,-500.0,0.00016438,2]
[329875821,1718781035112,-502.12413421,0.00016438,2]
[329875822,1718781035121,-515.23555991,0.00016438,2]
[329875823,1718781035130,-500.0,0.00016438,2]
[329875824,1718781035140,-500.0,0.00016438,2]
[329875825,1718781035149,-500.0,0.00016438,2]
[329875826,1718781035158,-500.0,0.00016438,2]
[329875827,1718781035167,-500.0,0.00016438,2]
[329875828,1718781035180,-500.0,0.00016438,2]
[329875829,1718781035189,-500.0,0.00016438,2]
[329875830,1718781035198,-204.55088357,0.00016438,2]
[329875831,1718781035208,-500.0,0.00016438,2]
[329875832,1718781035217,-500.0,0.00016438,2]
[329875833,1718781035227,-500.0,0.00016438,2]
[329875834,1718781035236,-501.39439862,0.00016438,2]
[329875835,1718781035245,-500.0,0.00016438,2]
[329875836,1718781035258,-510.68437688,0.00016438,2]
[329875837,1718781035267,-500.0,0.00016438,2]
[329875838,1718781035277,-500.0,0.00016438,2]
[329875839,1718781035287,-510.04017648,0.00016438,2]
[329875840,1718781035296,-500.0,0.00016438,2]
[329875841,1718781035305,-505.56868106,0.00016438,2]
[329875842,1718781035314,-522.15283086,0.00016438,2]
[329875843,1718781035324,-500.0,0.00016438,2]
[329875844,1718781035333,-500.0,0.00016438,2]
[329875845,1718781035343,-516.36555558,0.00016438,2]
[329875846,1718781035352,-151.0,0.00016438,2]
[329875847,1718781035361,-523.80568636,0.00016438,2]
[329875848,1718781035371,-500.0,0.00016438,2]
[329875849,1718781035380,-500.0,0.00016438,2]
[329875850,1718781035390,-500.0,0.00016438,2]
[329875852,1718781035399,-500.29903287,0.00016438,2]
[329875854,1718781035409,-500.85611727,0.00016438,2]
[329875856,1718781035418,-506.11037188,0.00016438,2]
[329875858,1718781035430,-163.24056958,0.00016438,2]
[329875860,1718781035440,-500.0,0.00016438,2]
[329875862,1718781035449,-500.0,0.00016438,2]
[329875876,1718781035587,-500.0,0.00016438,2]
[329875878,1718781035598,-500.0,0.00016438,2]
[329875880,1718781035610,-500.0,0.00016438,2]
[329875882,1718781035620,-503.29765536,0.00016438,2]
[329875884,1718781035629,-500.0,0.00016438,2]
[329875886,1718781035639,-500.0,0.00016438,2]
[329875888,1718781035651,-503.16073699,0.00016438,2]
[329875890,1718781035661,-500.0,0.00016438,2]
[329875892,1718781035673,-500.0,0.00016438,2]
[329875894,1718781035682,-500.0,0.00016438,2]
[329875896,1718781035691,-633.04233874,0.00016438,2]
[329875898,1718781035701,-505.61567867,0.00016438,2]
[329875900,1718781035711,-466.99740862,0.00016438,2]
[329875902,1718781035720,-507.70711192,0.00016438,2]
[329875904,1718781035730,-500.0,0.00016438,2]
[329875906,1718781035739,-500.0,0.00016438,2]
[329875908,1718781035748,-500.0,0.00016438,2]
[329875910,1718781035758,-500.0,0.00016438,2]
[329875912,1718781035768,-500.0,0.00016438,2]
[329875914,1718781035778,-500.40302661,0.00016438,2]
[329875916,1718781035787,-500.0,0.00016438,2]
[329875918,1718781035796,-505.9125234,0.00016438,2]
[329875920,1718781035806,-506.89524485,0.00016438,2]
[329875922,1718781035815,-159.978347,0.00016438,2]
[329875924,1718781035825,-500.0,0.00016438,2]
[329875926,1718781035836,-503.5936101,0.00016438,2]
[329875928,1718781035845,-504.96718267,0.00016438,2]
[329875930,1718781035854,-527.90334845,0.00016438,2]
[329875932,1718781035864,-511.14866386,0.00016438,2]
[329875934,1718781035873,-214.69889735,0.00016438,2]
[329875936,1718781035882,-505.979624,0.00016438,2]
[329875938,1718781035891,-500.0,0.00016438,2]
[329875940,1718781035901,-500.0,0.00016438,2]
[329875942,1718781035910,-500.0,0.00016438,2]
[329875943,1718781035920,-500.0,0.00016438,2]
[329875945,1718781035930,-511.63588,0.00016438,2]
[329875947,1718781035939,-500.0,0.00016438,2]
[329875949,1718781035949,-500.0,0.00016438,2]
[329875951,1718781035959,-500.0,0.00016438,2]
[329875953,1718781035968,-540.41234757,0.00016438,2]
[329875954,1718781035978,-506.14005198,0.00016438,2]
[329875957,1718781035988,-508.12442188,0.00016438,2]
[329875959,1718781035998,-500.0,0.00016438,2]
[329875960,1718781036007,-503.95720093,0.00016438,2]
[329875962,1718781036016,-508.682542,0.00016438,2]
[329875964,1718781036025,-500.0,0.00016438,2]
[329875966,1718781036035,-1043.04307048,0.00016438,2]
[329875968,1718781036044,-500.0,0.00016438,2]
[329875970,1718781036053,-500.0,0.00016438,2]
[329875972,1718781036062,-500.0,0.00016438,2]
[329875974,1718781036073,-532.52065309,0.00016438,2]